bitfinex-derivatives/quotes_BTCF0:USTF0_20250508
["timestamp","ask_amount","ask_price","bid_price","bid_amount"]
[1746716401081,0.25487028,99429.0,99428.0,0.17800575]
[1746716401275,0.61487028,99429.0,99428.0,0.01000575]
[1746716401576,0.70337028,99429.0,99428.0,0.02550961]
[1746716402287,0.70237028,99429.0,99428.0,0.07248403]
[1746716402487,1.20237028,99429.0,99428.0,0.07348403]
[1746716402888,1.30294628,99429.0,99428.0,0.07348403]
[1746716403079,1.20237028,99429.0,99428.0,0.07248403]
[1746716403284,1.20337028,99429.0,99428.0,0.07248403]
[1746716403481,1.20237028,99429.0,99428.0,0.06748403]
[1746716404677,1.20237028,99429.0,99428.0,0.01750961]
[1746716406193,1.37037028,99429.0,99428.0,0.01750961]
[1746716406887,1.16925198,99429.0,99428.0,0.21863001]
[1746716407094,0.95275198,99429.0,99428.0,0.47473001]
[1746716407387,1.15387028,99429.0,99428.0,0.51883001]
[1746716407596,0.95275198,99429.0,99428.0,0.51883001]
[1746716407782,1.15487028,99429.0,99428.0,0.51783001]
[1746716407983,1.15184027,99429.0,99428.0,0.51883001]
[1746716408183,0.65184027,99429.0,99428.0,0.51883001]
[1746716408391,1.01264027,99429.0,99428.0,0.22920961]
[1746716408596,1.03744027,99429.0,99428.0,0.18450961]
[1746716408894,1.08244027,99429.0,99428.0,0.18850961]
[1746716409283,1.08244027,99429.0,99428.0,0.02050961]
[1746716410383,1.58244027,99429.0,99428.0,0.02050961]
[1746716410585,1.58244027,99429.0,99428.0,0.01850961]
[1746716410791,1.58244027,99429.0,99428.0,0.02050961]
[1746716411185,1.58344027,99429.0,99428.0,0.01950961]
[1746716411390,1.58344027,99429.0,99428.0,0.01750961]
[1746716411692,1.62884027,99429.0,99428.0,0.01750961]
[1746716412190,1.33492197,99429.0,99428.0,0.43263001]
[1746716412390,1.57994027,99429.0,99428.0,0.23150961]
[1746716412588,1.57994027,99429.0,99428.0,0.43263001]
[1746716412784,1.57794027,99429.0,99428.0,0.18450961]
[1746716412995,1.57994027,99429.0,99428.0,0.18550961]
[1746716413293,1.57994027,99429.0,99428.0,0.01750961]
[1746716413487,1.57994027,99429.0,99428.0,0.06350961]
[1746716414293,1.57994027,99429.0,99428.0,0.04800575]
[1746716414498,1.57894027,99429.0,99428.0,0.00200575]
[1746716415202,1.57794027,99429.0,99428.0,0.00200575]
[1746716415399,1.57694027,99429.0,99428.0,0.01725006]
[1746716415694,0.2011689,99404.0,99383.0,0.3608]
[1746716415899,1.36949087,99404.0,99403.0,0.04247457]
[1746716416096,1.53749087,99404.0,99403.0,0.001006]
[1746716416600,1.53749087,99404.0,99403.0,0.00843222]
[1746716416796,1.53749087,99404.0,99403.0,0.001006]
[1746716417997,1.53849087,99404.0,99403.0,0.003006]
[1746716418198,1.87049087,99404.0,99403.0,0.006006]
[1746716418500,1.87049087,99404.0,99403.0,0.013645]
[1746716418990,1.6226,99404.0,99403.0,0.2148159]
[1746716419197,0.851,99404.0,99403.0,0.3828159]
[1746716419504,0.5521689,99404.0,99403.0,0.181645]
[1746716420096,0.5521689,99404.0,99403.0,0.2148159]
[1746716420301,0.351,99404.0,99403.0,0.2148159]
[1746716420705,0.351,99404.0,99403.0,0.2595159]
[1746716421296,0.351,99404.0,99403.0,0.4275159]
[1746716423703,0.10478204,99408.0,99407.0,0.2011628]
[1746716423899,0.16227204,99408.0,99407.0,0.5619628]
[1746716424100,0.16227204,99408.0,99407.0,0.7299628]
[1746716424301,0.15174987,99425.0,99415.0,0.2011467]
[1746716424503,0.33645823,99416.0,99415.0,0.6786667]
[1746716424700,0.33645823,99416.0,99415.0,0.3178667]
[1746716424902,0.33645823,99416.0,99415.0,0.9578667]
[1746716425097,0.53760283,99416.0,99415.0,1.2184667]
[1746716425297,0.89840283,99416.0,99415.0,0.97062]
[1746716425604,0.89940283,99416.0,99415.0,0.97162]
[1746716426007,0.94350283,99416.0,99415.0,1.1727667]
[1746716426211,0.8170446,99416.0,99415.0,1.0047667]
[1746716426402,0.8170446,99416.0,99415.0,0.3647667]
[1746716426599,0.4121446,99416.0,99415.0,0.3647667]
[1746716426806,0.211,99416.0,99415.0,0.3647667]
[1746716427199,0.221,99416.0,99415.0,0.5327667]
[1746716427404,0.05180739,99423.0,99422.0,0.2011325]
[1746716427603,0.12645823,99438.0,99437.0,0.2011021]
[1746716427806,0.12645823,99438.0,99437.0,0.2991561]
[1746716428105,0.12645823,99438.0,99437.0,0.168]
[1746716428408,0.32755833,99438.0,99437.0,0.3691021]
[1746716428713,0.32755833,99438.0,99437.0,0.4589021]
[1746716429007,0.33155833,99438.0,99437.0,0.2578]
[1746716429309,0.42655833,99438.0,99437.0,0.0898]
[1746716429515,0.43055833,99438.0,99437.0,0.2919021]
[1746716430111,0.008,99438.0,99437.0,0.2919021]
[1746716430309,0.008,99438.0,99437.0,0.4599021]
[1746716430511,0.008,99438.0,99437.0,0.5766221]
[1746716431101,0.2091001,99438.0,99437.0,0.5766221]
[1746716431499,0.008,99438.0,99437.0,0.5766221]
[1746716432905,0.68831993,99457.0,99452.0,0.2010718]
[1746716433111,0.12645823,99457.0,99452.0,0.3690718]
[1746716433309,0.15174987,99457.0,99452.0,0.4696238]
[1746716433614,0.15174987,99457.0,99456.0,0.2010637]
[1746716433809,0.15174987,99457.0,99456.0,0.60318523]
[1746716434013,0.00442964,99457.0,99456.0,0.70373323]
[1746716434221,0.00442964,99457.0,99456.0,1.21263323]
[1746716434709,0.00442964,99457.0,99456.0,0.96263323]
[1746716435016,0.00642964,99457.0,99456.0,0.96363323]
[1746716435812,0.00642964,99457.0,99456.0,1.60363323]
[1746716436708,0.002,99457.0,99456.0,1.60363323]
[1746716437309,0.002,99457.0,99456.0,1.61125202]
[1746716438607,0.48829654,99502.0,99482.0,0.2010112]
[1746716438912,0.2009831,99496.0,99482.0,0.3176912]
[1746716439103,0.0502484,99491.0,99482.0,0.4856912]
[1746716439307,0.2010082,99484.0,99482.0,0.5726912]
[1746716439509,0.24973117,99483.0,99482.0,0.5726912]
[1746716439817,0.29523117,99483.0,99482.0,0.5726912]
[1746716440317,0.25473117,99483.0,99482.0,0.5736912]
[1746716440718,0.25973117,99483.0,99482.0,0.5736912]
[1746716441017,0.25673117,99483.0,99482.0,0.5726912]
[1746716441917,0.25373117,99483.0,99482.0,0.37168]
[1746716442617,0.05272197,99483.0,99482.0,0.5726912]
[1746716442807,0.20097,99503.0,99498.0,0.2009789]
[1746716443007,0.2009675,99504.0,99498.0,0.9225789]
[1746716443217,0.1402391,99509.0,99498.0,0.9225789]
[1746716443513,0.2009717,99502.0,99498.0,1.5625789]
[1746716443713,0.0436,99509.0,99498.0,1.6551789]
[1746716443921,0.006,99499.0,99498.0,1.6561789]
[1746716444116,0.011,99499.0,99498.0,1.8241789]
[1746716444417,0.00089298,99499.0,99498.0,1.9246829]
[1746716444622,0.2512017,99512.0,99511.0,0.2009506]
[1746716444807,0.3412017,99512.0,99511.0,0.3176306]
[1746716445012,0.38792367,99512.0,99511.0,0.3176306]
[1746716445213,0.38792367,99512.0,99511.0,0.4856306]
[1746716445520,0.002,99513.0,99512.0,0.2009506]
[1746716446020,0.14162197,99513.0,99512.0,0.24313709]
[1746716446221,0.14162197,99513.0,99512.0,0.41113709]
[1746716446423,0.14162197,99513.0,99512.0,0.52781709]
[1746716446613,0.34257057,99513.0,99512.0,0.33432214]
[1746716446817,0.39007057,99513.0,99512.0,0.33432214]
[1746716447218,0.2009869,99494.0,99493.0,0.11668]
[1746716447520,0.2009869,99494.0,99462.0,0.7785]
[1746716447521,0.2010011,99487.0,99486.0,0.04126196]
[1746716448023,0.24772307,99487.0,99486.0,0.04126196]
[1746716448322,0.2010193,99478.0,99477.0,0.2010213]
[1746716448721,0.2884193,99478.0,99477.0,0.24328378]
[1746716449311,0.2010253,99475.0,99474.0,0.76357485]
[1746716449513,0.2010253,99475.0,99474.0,0.32460215]
[1746716450322,0.2884253,99475.0,99474.0,0.36691951]
[1746716450528,0.2884253,99475.0,99474.0,0.12357485]
[1746716450718,0.33514727,99475.0,99474.0,0.12657485]
[1746716450924,0.33514727,99475.0,99474.0,0.13057485]
[1746716451119,0.13412197,99475.0,99474.0,0.33160215]
[1746716451323,0.33514727,99475.0,99474.0,0.32860215]
[1746716451620,0.33514727,99475.0,99474.0,0.32760215]
[1746716451815,0.33514727,99475.0,99474.0,0.33260215]
[1746716452217,0.33514727,99475.0,99474.0,0.50060215]
[1746716452826,0.13412197,99475.0,99474.0,0.38452215]
[1746716454125,0.3608,99482.0,99481.0,0.2010132]
[1746716454323,0.4066,99482.0,99481.0,0.2010132]
[1746716454825,0.0502478,99492.0,99488.0,0.0502497]
[1746716455026,0.248697,99489.0,99488.0,0.6120488]
[1746716455326,0.29541897,99489.0,99488.0,0.2512488]
[1746716456216,0.29541897,99489.0,99488.0,0.4192488]
[1746716457324,0.09442197,99489.0,99488.0,0.4282488]
[1746716457529,0.0477,99489.0,99488.0,0.4282488]
[1746716458929,0.248697,99489.0,99488.0,1.0682488]
[1746716459125,0.29541897,99489.0,99488.0,0.817]
[1746716459429,0.46341897,99489.0,99488.0,0.009]
[1746716460227,0.29541897,99489.0,99488.0,0.009]
[1746716460830,0.29541897,99489.0,99488.0,0.007]
[1746716461128,0.29541897,99489.0,99488.0,0.004]
[1746716461735,0.29541897,99489.0,99488.0,0.003]
[1746716462327,0.39593498,99489.0,99488.0,0.003]
[1746716462522,0.2010253,99475.0,99474.0,0.00749485]
[1746716462746,0.2010455,99465.0,99464.0,0.2010468]
[1746716462936,0.24777557,99461.0,99454.0,0.0502667]
[1746716463142,0.24778167,99458.0,99453.0,0.0010055]
[1746716463431,0.2010678,99454.0,99453.0,0.0010055]
[1746716463629,0.5618678,99454.0,99453.0,0.2020753]
[1746716463837,0.60858977,99454.0,99453.0,0.00847598]
[1746716464136,0.60858977,99454.0,99453.0,0.20954578]
[1746716464343,0.70108977,99454.0,99453.0,0.25206884]
[1746716464836,0.50102197,99454.0,99453.0,0.26506884]
[1746716465038,0.4543,99454.0,99453.0,0.31136884]
[1746716466132,0.4543,99454.0,99453.0,0.47936884]
[1746716466332,0.0935,99454.0,99453.0,0.47636884]
[1746716466530,0.3608,99465.0,99464.0,0.2010476]
[1746716467239,0.3608,99465.0,99464.0,0.3690476]
[1746716467732,0.3608,99465.0,99464.0,0.3700476]
[1746716467938,0.3608,99465.0,99464.0,0.4175476]
[1746716468338,0.12680497,99475.0,99474.0,0.2010273]
[1746716468639,0.12680497,99475.0,99474.0,0.3171473]
[1746716468825,0.12680497,99475.0,99474.0,0.9571473]
[1746716469226,0.12680497,99475.0,99474.0,1.22567529]
[1746716469931,0.3608,99476.0,99475.0,0.2010253]
[1746716470131,0.3608,99476.0,99475.0,0.4620253]
[1746716471037,0.561819,99479.0,99478.0,0.2010193]
[1746716471238,0.60854097,99479.0,99478.0,0.2010193]
[1746716472136,0.40752197,99479.0,99478.0,0.2010193]
[1746716472336,0.3608,99487.0,99484.0,0.2512545]
[1746716472543,0.5618051,99487.0,99486.0,0.2010031]
[1746716473041,0.60852707,99487.0,99486.0,0.2010031]
[1746716473345,0.3608,99487.0,99486.0,0.2010031]
[1746716473529,0.3608,99487.0,99486.0,0.2467031]
[1746716473937,0.3638,99487.0,99486.0,0.2467031]
[1746716474138,0.3668,99487.0,99486.0,0.4147031]
[1746716474539,0.5678011,99487.0,99486.0,0.4147031]
[1746716475137,0.3668,99487.0,99486.0,0.4147031]
[1746716475839,0.5678011,99487.0,99486.0,0.4147031]
[1746716476037,0.3668,99487.0,99486.0,0.4147031]
[1746716476539,0.3668,99487.0,99486.0,0.5307831]
[1746716476737,0.006,99487.0,99486.0,0.8915831]
[1746716477442,0.003,99487.0,99486.0,0.8925831]
[1746716477644,0.3608,99499.0,99498.0,0.2009789]
[1746716478130,0.12680497,99507.0,99506.0,0.2009627]
[1746716478537,0.17352694,99507.0,99506.0,0.2009627]
[1746716478736,0.17352694,99507.0,99506.0,0.2910627]
[1746716479041,0.0502406,99506.0,99486.0,0.11708]
[1746716479239,0.24769877,99499.0,99498.0,0.8409789]
[1746716479446,0.24769877,99499.0,99498.0,0.87710236]
[1746716479744,0.2009768,99499.0,99498.0,0.87710236]
[1746716479947,0.3608,99503.0,99499.0,0.0502438]
[1746716480242,0.12680497,99507.0,99506.0,0.2009627]
[1746716481144,0.32776567,99507.0,99506.0,0.4610627]
[1746716481839,0.32876567,99507.0,99506.0,0.4610627]
[1746716482041,0.2019607,99507.0,99506.0,0.4610627]
[1746716482239,0.2019607,99507.0,99506.0,0.4159627]
[1746716482539,0.001,99507.0,99506.0,0.4159627]
[1746716482740,0.001,99507.0,99506.0,0.4607627]
[1746716483041,0.004,99507.0,99506.0,0.4607627]
[1746716483238,0.2049607,99507.0,99506.0,0.4607627]
[1746716484042,0.004,99507.0,99506.0,0.4607627]
[1746716485254,0.004,99507.0,99506.0,1.1007627]
[1746716485838,0.002,99513.0,99512.0,0.2009506]
[1746716486048,0.002,99513.0,99512.0,0.6772306]
[1746716486345,0.002,99513.0,99512.0,0.8707186]
[1746716486546,0.2029486,99513.0,99512.0,0.7702306]
[1746716487139,0.2069486,99513.0,99512.0,0.9382306]
[1746716487339,0.009,99513.0,99512.0,0.9382306]
[1746716488043,0.009,99513.0,99512.0,1.0387186]
[1746716488237,0.00247001,99522.0,99521.0,0.2009324]
[1746716488435,0.0478,99537.0,99523.0,0.2009284]
[1746716488635,0.0478,99537.0,99521.0,0.4110327]
[1746716488636,0.2511522,99528.0,99527.0,0.2009142]
[1746716488838,0.2009284,99523.0,99521.0,0.3608]
[1746716489144,0.2009425,99518.0,99517.0,0.2511713]
[1746716489339,0.24766447,99518.0,99517.0,0.2511713]
[1746716489539,0.04672197,99518.0,99517.0,0.2511713]
[1746716490048,0.04672197,99518.0,99517.0,0.8911713]
[1746716490244,0.200929,99523.0,99517.0,0.64]
[1746716490438,0.04672197,99521.0,99520.0,0.2511676]
[1746716490637,0.0479,99524.0,99523.0,0.2009284]
[1746716491037,0.0488,99532.0,99531.0,0.2009122]
[1746716491350,0.10048865,99533.0,99532.0,0.2009102]
[1746716491850,0.2009063,99534.0,99533.0,0.2009082]
[1746716492239,0.2485041,99535.0,99534.0,0.2009062]
[1746716492634,0.29522607,99535.0,99534.0,0.2009062]
[1746716492847,0.2009062,99534.0,99533.0,0.3689082]
[1746716493042,0.24762817,99534.0,99533.0,0.168]
[1746716493241,0.2009082,99533.0,99532.0,0.2019102]
[1746716493440,0.29633017,99533.0,99532.0,0.2019102]
[1746716493641,0.34393017,99533.0,99532.0,0.2009102]
[1746716493841,0.34393017,99533.0,99532.0,0.3163502]
[1746716494242,0.34493017,99533.0,99532.0,0.3163502]
[1746716496546,0.34593017,99533.0,99532.0,0.3163502]
[1746716498047,0.14502197,99533.0,99532.0,0.3163502]
[1746716498949,0.14502197,99533.0,99532.0,0.4069502]
[1746716499150,0.14502197,99533.0,99532.0,0.5749502]
[1746716500554,0.14402197,99533.0,99532.0,0.5749502]
[1746716500853,0.14302197,99533.0,99532.0,0.5789502]
[1746716501150,0.14302197,99533.0,99532.0,0.5819502]
[1746716502745,0.14302197,99533.0,99532.0,0.5355502]
[1746716505054,0.0963,99533.0,99532.0,0.5355502]
[1746716505248,0.0478,99537.0,99536.0,0.2009021]
[1746716505651,0.0478,99537.0,99536.0,0.21601514]
[1746716505850,0.0478,99537.0,99536.0,0.2009021]
[1746716506047,0.0478,99537.0,99536.0,0.85601515]
[1746716506249,0.0478,99537.0,99536.0,0.8409021]
[1746716506453,0.0478,99537.0,99536.0,0.88255475]
[1746716506753,0.2487001,99537.0,99536.0,0.88255475]
[1746716506956,0.38872207,99537.0,99536.0,0.04165265]
[1746716507158,0.2009223,99526.0,99525.0,0.11544]
[1746716507459,0.2009223,99526.0,99525.0,0.79033199]
[1746716507659,0.24764427,99526.0,99525.0,0.99125629]
[1746716508051,0.34094427,99526.0,99525.0,0.15033199]
[1746716508250,0.34094427,99526.0,99525.0,0.35125629]
[1746716508452,0.70174427,99526.0,99525.0,0.15033199]
[1746716508753,0.70174427,99526.0,99525.0,0.15333199]
[1746716509348,0.2009768,99499.0,99480.0,0.25254883]
[1746716509554,0.2009849,99495.0,99483.0,0.0941]
[1746716509754,0.24770687,99495.0,99494.0,0.38930756]
[1746716510057,0.21472197,99495.0,99494.0,0.38930756]
[1746716510255,0.168,99495.0,99494.0,0.39691401]
[1746716510446,0.168,99495.0,99494.0,0.87251401]
[1746716510952,0.168,99495.0,99494.0,0.92101401]
[1746716511152,0.2009646,99506.0,99498.0,0.0502443]
[1746716511355,0.3608,99518.0,99503.0,0.00200998]
[1746716511655,0.5617399,99518.0,99517.0,0.2009405]
[1746716511962,0.60846187,99518.0,99517.0,0.2009405]
[1746716512162,0.15245524,99520.0,99519.0,0.2009364]
[1746716513062,0.15245524,99520.0,99519.0,0.2497364]
[1746716513355,0.15245524,99520.0,99519.0,0.43290532]
[1746716513555,0.15245524,99520.0,99519.0,0.43590532]
[1746716514054,0.15245524,99520.0,99519.0,0.43990532]
[1746716514259,0.15245524,99520.0,99519.0,0.2567364]
[1746716515154,0.15245524,99520.0,99519.0,0.4247364]
[1746716515548,0.15245524,99520.0,99519.0,0.4217364]
[1746716515757,0.15245524,99520.0,99519.0,0.4247364]
[1746716515962,0.02782698,99520.0,99519.0,0.4247364]
[1746716516358,0.0502246,99538.0,99537.0,0.2009001]
[1746716516755,0.29785147,99538.0,99537.0,0.2009001]
[1746716516956,0.29785147,99538.0,99537.0,0.23677168]
[1746716517956,0.29785147,99538.0,99537.0,0.23777168]
[1746716518156,0.04672197,99538.0,99537.0,0.23777168]
[1746716518460,0.04672197,99538.0,99537.0,0.28717168]
[1746716518762,0.24762007,99538.0,99537.0,0.28717168]
[1746716519156,0.24762007,99538.0,99537.0,0.30235812]
[1746716519963,0.04672197,99538.0,99537.0,0.30235812]
[1746716520355,0.24762007,99538.0,99537.0,0.30235812]
[1746716521461,0.24762007,99538.0,99537.0,0.25295812]
[1746716522057,0.24762007,99538.0,99537.0,0.24277168]
[1746716522960,0.24762007,99538.0,99537.0,0.04387158]
[1746716523268,0.41562007,99538.0,99537.0,0.04387158]
[1746716523963,0.41562007,99538.0,99537.0,0.03987158]
[1746716524159,0.002,99543.0,99537.0,0.1727582]
[1746716524356,0.002,99543.0,99542.0,0.56169]
[1746716524557,0.002,99543.0,99542.0,0.57677662]
[1746716525159,0.002,99543.0,99542.0,0.74477662]
[1746716525368,0.200858,99558.0,99544.0,0.200886]
[1746716525561,0.12770868,99559.0,99544.0,0.21658092]
[1746716525757,0.0502176,99552.0,99544.0,0.21658092]
[1746716525961,0.0502155,99556.0,99544.0,0.31448092]
[1746716526161,0.203394,99545.0,99544.0,0.28159492]
[1746716526355,0.203394,99545.0,99544.0,0.48248092]
[1746716526564,0.203394,99545.0,99544.0,0.48548092]
[1746716526759,0.203394,99545.0,99544.0,0.584586]
[1746716526962,0.61091597,99545.0,99544.0,0.17855279]
[1746716527165,0.200886,99544.0,99543.0,0.02261]
[1746716527357,0.200886,99544.0,99524.0,0.1148]
[1746716527358,0.35046,99544.0,99513.0,0.0979]
[1746716527558,0.24766847,99514.0,99513.0,0.3010801]
[1746716527764,0.24766847,99514.0,99513.0,0.33719177]
[1746716528070,0.24766847,99514.0,99513.0,0.28695477]
[1746716528362,0.24766847,99514.0,99513.0,0.2009486]
[1746716528759,0.24766847,99514.0,99513.0,0.2481486]
[1746716529161,0.24866847,99514.0,99513.0,0.2651486]
[1746716529668,0.24966847,99514.0,99513.0,0.2651486]
[1746716530167,0.04872197,99514.0,99513.0,0.2651486]
[1746716530570,0.04872197,99514.0,99513.0,0.30016945]
[1746716530765,0.04872197,99514.0,99513.0,0.34786945]
[1746716530961,0.002,99514.0,99513.0,0.34786945]
[1746716531160,0.002,99514.0,99513.0,0.51586945]
[1746716531763,0.002,99514.0,99513.0,0.53099207]
[1746716532161,0.002,99514.0,99513.0,0.51586945]
[1746716532363,0.002,99514.0,99513.0,1.15586945]
[1746716532954,0.2029465,99514.0,99513.0,0.46816945]
[1746716533158,0.002,99514.0,99513.0,0.30016945]
[1746716533361,0.002,99514.0,99513.0,0.34786945]
[1746716533558,0.002,99514.0,99513.0,0.98786945]
[1746716534166,0.002,99514.0,99513.0,1.17113588]
[1746716534970,0.002,99514.0,99513.0,1.17115406]
[1746716535963,0.24966847,99514.0,99513.0,0.92250546]
[1746716536167,0.24966847,99514.0,99513.0,0.25296945]
[1746716536470,0.24966847,99514.0,99513.0,0.017]
[1746716536863,0.34596847,99514.0,99513.0,0.017]
[1746716537066,0.2009849,99495.0,99494.0,0.20859335]
[1746716537260,0.24770687,99495.0,99494.0,0.2009869]
[1746716537664,0.200991,99492.0,99491.0,0.1148]
[1746716537957,0.24771297,99492.0,99491.0,0.13004636]
[1746716538169,0.41571297,99492.0,99491.0,0.1664575]
[1746716538471,0.91571297,99492.0,99491.0,0.1664575]
[1746716538676,0.71472197,99492.0,99491.0,0.3674505]
[1746716539175,0.501,99492.0,99491.0,0.38091483]
[1746716539363,0.501,99492.0,99491.0,0.28182371]
[1746716539566,0.501,99492.0,99491.0,0.49054371]
[1746716539870,0.0504,99509.0,99508.0,0.2009587]
[1746716540264,0.0474,99511.0,99510.0,0.2009546]
[1746716540466,0.0474,99511.0,99510.0,0.21620096]
[1746716540762,0.2483526,99511.0,99510.0,0.35620096]
[1746716540963,0.0474,99511.0,99510.0,0.37190764]
[1746716541268,0.12770868,99520.0,99512.0,0.2009506]
[1746716541465,0.12770868,99520.0,99513.0,0.01570668]
[1746716541661,0.12770868,99520.0,99519.0,0.2009364]
[1746716541861,0.12770868,99520.0,99519.0,0.21664141]
[1746716542065,0.12770868,99520.0,99519.0,0.38464141]
[1746716542470,0.12770868,99520.0,99519.0,0.49945102]
[1746716542864,0.13170868,99520.0,99519.0,0.50045102]
[1746716543168,0.12970868,99520.0,99519.0,0.50045102]
[1746716543473,0.12970868,99520.0,99519.0,0.64345102]
[1746716543474,0.002,99520.0,99519.0,0.64345102]
[1746716544774,0.0474,99529.0,99528.0,0.2009183]
[1746716544971,0.0474,99529.0,99528.0,0.01570501]
[1746716544972,0.2985458,99529.0,99528.0,0.01570501]
[1746716545170,0.2009344,99520.0,99519.0,0.27184601]
[1746716545362,0.04672197,99520.0,99519.0,0.28355017]
[1746716545571,0.0472,99521.0,99520.0,0.2009344]
[1746716545770,0.09392197,99521.0,99520.0,0.31813856]
[1746716545975,0.0472,99521.0,99520.0,0.31813856]
[1746716546177,0.0472,99521.0,99520.0,0.33344817]
[1746716546373,0.0479,99525.0,99520.0,0.13251377]
[1746716546677,0.2530243,99525.0,99524.0,0.2009264]
[1746716546865,0.2530243,99525.0,99524.0,0.01570416]
[1746716547070,0.34894627,99525.0,99524.0,0.01570416]
[1746716547271,0.69942228,99525.0,99524.0,0.01530961]
[1746716547468,0.45177601,99525.0,99483.0,0.00150766]
[1746716547665,0.60851297,99492.0,99491.0,0.00746433]
[1746716547966,0.04672197,99492.0,99491.0,0.2167025]
[1746716548371,0.24771297,99492.0,99491.0,0.02329231]
[1746716548573,0.24771297,99492.0,99491.0,0.00758281]
[1746716548869,0.0521,99496.0,99495.0,0.2009849]
[1746716549077,0.050246,99496.0,99493.0,0.200988]
[1746716549274,0.04672197,99494.0,99491.0,0.01042223]
[1746716549467,0.24771297,99492.0,99491.0,0.01042223]
[1746716549772,0.24871297,99492.0,99491.0,0.01442223]
[1746716550078,0.0488,99492.0,99491.0,0.21541523]
[1746716550269,0.001,99492.0,99491.0,0.21541523]
[1746716550468,0.501,99492.0,99491.0,0.21241523]
[1746716550666,0.501,99492.0,99491.0,0.26281523]
[1746716551072,0.5,99492.0,99491.0,0.25881523]
[1746716551373,0.5,99492.0,99491.0,0.42881523]
[1746716551775,0.001,99494.0,99493.0,0.200989]
[1746716552074,0.4086,99497.0,99496.0,0.2009829]
[1746716552381,0.3608,99528.0,99515.0,0.2009445]
[1746716552576,0.2009599,99511.0,99510.0,0.251187]
[1746716552979,0.24768187,99511.0,99510.0,0.251187]
[1746716553375,0.04672197,99511.0,99510.0,0.251187]
[1746716553572,0.24767457,99511.0,99510.0,0.2009485]
[1746716553771,0.2009607,99507.0,99506.0,0.2483588]
[1746716554078,0.5617607,99507.0,99506.0,0.4163588]
[1746716554484,0.70897867,99507.0,99506.0,0.168]
[1746716554676,0.2009809,99497.0,99496.0,0.002]
[1746716554875,0.24770717,99497.0,99496.0,0.2009829]
[1746716555070,0.200989,99493.0,99492.0,0.200989]
[1746716555277,0.24771097,99493.0,99492.0,0.200989]
[1746716556182,0.24771097,99493.0,99492.0,0.203989]
[1746716556386,0.001,99497.0,99496.0,0.2009829]
[1746716556676,0.001,99497.0,99496.0,0.21650882]
[1746716556881,0.001,99497.0,99496.0,0.31701682]
[1746716557282,0.2009471,99514.0,99513.0,0.2009465]
[1746716557679,0.29616907,99514.0,99513.0,0.2009465]
[1746716557885,0.79616907,99514.0,99513.0,0.2009465]
[1746716558178,0.59522197,99514.0,99513.0,0.2009465]
[1746716558779,0.79916847,99514.0,99513.0,0.2019465]
[1746716558975,0.59822197,99514.0,99513.0,0.2019465]
[1746716559181,0.54972197,99514.0,99513.0,0.2019465]
[1746716559382,0.80146847,99514.0,99513.0,0.001]
[1746716559685,0.60052197,99514.0,99513.0,0.2019486]
[1746716560077,0.60052197,99514.0,99513.0,0.38514431]
[1746716560384,0.80146847,99514.0,99513.0,0.38514431]
[1746716560578,0.84916847,99514.0,99513.0,0.38514431]
[1746716560784,0.84916847,99514.0,99513.0,0.18419571]
[1746716560982,0.84916847,99514.0,99495.0,0.11412]
[1746716560983,1.19965647,99514.0,99495.0,0.11412]
[1746716561184,0.2009829,99496.0,99495.0,0.3151049]
[1746716561385,0.24770487,99496.0,99495.0,0.11412]
[1746716561686,0.24770487,99496.0,99495.0,0.33079791]
[1746716561981,0.34610487,99496.0,99495.0,0.3151049]
[1746716562186,0.34610487,99496.0,99495.0,0.33379777]
[1746716562480,0.14512197,99496.0,99495.0,0.33679777]
[1746716562685,0.0473,99496.0,99495.0,0.3211049]
[1746716562984,0.0473,99496.0,99495.0,0.33635716]
[1746716563187,0.2482829,99496.0,99495.0,0.33635697]
[1746716563483,0.0473,99496.0,99495.0,0.33635697]
[1746716563677,0.09402197,99496.0,99495.0,0.33335697]
[1746716563879,0.09502197,99496.0,99495.0,0.3201049]
[1746716564083,0.09502197,99496.0,99495.0,0.3354422]
[1746716565592,0.29600487,99496.0,99495.0,0.3354422]
[1746716565790,0.65680487,99496.0,99495.0,0.11912]
[1746716565986,0.65680487,99496.0,99495.0,0.005]
[1746716566285,0.82480487,99496.0,99495.0,0.005]
[1746716567291,1.32480487,99496.0,99495.0,0.005]
[1746716567893,1.12382197,99496.0,99495.0,0.2059849]
[1746716568200,0.9091,99496.0,99495.0,0.2059849]
[1746716568601,0.4091,99496.0,99495.0,0.22169405]
[1746716569601,0.6100829,99496.0,99495.0,0.22169405]
[1746716569797,0.4091,99496.0,99495.0,0.22169405]
[1746716570398,0.3618,99496.0,99495.0,0.22169405]
[1746716570808,0.3618,99496.0,99495.0,0.2059849]
[1746716571694,0.3618,99496.0,99495.0,0.2540849]
[1746716572798,0.3618,99496.0,99495.0,0.005]
[1746716572799,0.60950487,99496.0,99495.0,0.005]
[1746716573004,0.66120487,99496.0,99495.0,0.005]
[1746716574001,1.16120487,99496.0,99495.0,0.005]
[1746716574203,1.32920487,99496.0,99495.0,0.005]
[1746716574704,1.32920487,99496.0,99495.0,0.2059849]
[1746716575105,0.90852197,99496.0,99495.0,0.2059849]
[1746716575296,0.8618,99496.0,99495.0,0.2059849]
[1746716575607,1.0627829,99496.0,99495.0,0.2059849]
[1746716575808,1.0627829,99496.0,99495.0,0.2557849]
[1746716576002,1.0627829,99496.0,99495.0,0.0548]
[1746716576316,1.0627829,99496.0,99495.0,0.2557849]
[1746716576501,1.1112829,99496.0,99495.0,0.2557849]
[1746716577310,1.1112829,99496.0,99495.0,0.0548]
[1746716577607,1.1112829,99496.0,99495.0,0.005]
[1746716577803,1.15800487,99496.0,99495.0,0.005]
[1746716578304,0.0502491,99490.0,99482.0,0.0020104]
[1746716578509,0.60853117,99483.0,99482.0,0.2030212]
[1746716579409,0.0545,99483.0,99482.0,0.21053057]
[1746716579605,0.3608,99488.0,99487.0,0.2010011]
[1746716580205,0.3608,99488.0,99487.0,0.3690011]
[1746716580413,0.3608,99488.0,99487.0,0.4741011]
[1746716580803,0.0531,99500.0,99494.0,0.0502463]
[1746716581005,0.0531,99500.0,99497.0,0.2009809]
[1746716581708,0.30313177,99498.0,99497.0,0.2009809]
[1746716581908,0.0531,99500.0,99499.0,0.2009768]
[1746716582107,0.12747543,99504.0,99503.0,0.2009688]
[1746716582306,0.12747543,99504.0,99503.0,0.5617688]
[1746716583215,0.12747543,99504.0,99503.0,0.7297688]
[1746716583416,0.68924213,99504.0,99503.0,0.3689688]
[1746716583610,0.48827543,99504.0,99503.0,0.5089688]
[1746716583819,0.48927543,99504.0,99503.0,0.5099688]
[1746716584208,0.7883641,99504.0,99503.0,0.2019688]
[1746716584512,0.48927543,99504.0,99503.0,0.2029688]
[1746716585015,0.48927543,99504.0,99503.0,0.2019688]